bitfinex-derivatives/quotes_ETHF0:USTF0_20241024
["timestamp","ask_amount","ask_price","bid_price","bid_amount"]
[1729786403234,0.39763,2516.5,2516.0,0.99428]
[1729786403735,2.45639344,2516.5,2516.3,0.39765]
[1729786404035,0.39764,2516.5,2516.3,0.39765]
[1729786404239,0.39763,2516.5,2516.0,0.99428]
[1729786404536,5.68425344,2516.6,2516.5,0.39763]
[1729786404940,3.6255,2516.6,2516.5,0.39763]
[1729786405437,5.68425344,2516.6,2515.9,1.3204]
[1729786405633,2.45638344,2516.5,2516.4,0.39765]
[1729786405834,2.45638344,2516.5,2516.3,0.39765]
[1729786406238,2.45638344,2516.5,2516.0,0.99428]
[1729786406239,2.45638344,2516.5,2516.4,0.39765]
[1729786406439,2.45639344,2516.5,2516.3,0.39765]
[1729786406835,0.39765,2516.4,2516.2,0.39767]
[1729786407137,2.05875344,2516.5,2516.3,0.39766]
[1729786407138,2.45639344,2516.5,2516.3,0.39766]
[1729786407647,0.39766,2516.4,2516.2,0.39767]
[1729786407941,2.45638344,2516.5,2516.0,0.99428]
[1729786408145,2.45638344,2516.5,2516.3,0.39765]
[1729786408541,2.45638344,2516.5,2516.4,0.39765]
[1729786408941,2.45638344,2516.5,2516.3,0.39765]
[1729786409142,2.45639344,2516.5,2516.1,0.39769]
[1729786409348,2.45639344,2516.5,2516.3,0.39765]
[1729786409540,2.05875344,2516.5,2515.9,0.3261]
[1729786409747,2.05875344,2516.5,2516.2,0.39767]
[1729786409748,0.39765,2516.4,2516.2,0.39767]
[1729786410045,2.05875344,2516.5,2516.4,0.39765]
[1729786410247,2.45638344,2516.5,2516.4,0.39765]
[1729786412145,0.39765,2516.4,2515.9,1.32041]
[1729786412348,2.05875344,2516.5,2516.3,0.39765]
[1729786412545,0.39765,2516.4,2516.3,0.39765]
[1729786413449,0.39765,2516.4,2516.3,0.39766]
[1729786413656,2.05875344,2516.5,2515.7,1.84497]
[1729786413953,3.2078,2516.3,2515.7,0.8506]
[1729786414145,0.4213,2516.2,2516.1,0.39769]
[1729786414647,0.8474,2516.2,2516.1,0.39769]
[1729786415553,3.2078,2516.3,2515.9,3.78792572]
[1729786415750,3.2078,2516.3,2516.2,0.39768]
[1729786415951,3.60546,2516.3,2516.2,0.39768]
[1729786416750,3.60547,2516.3,2516.2,0.39768]
[1729786416950,3.60547,2516.3,2515.9,0.99431]
[1729786417152,3.60547,2516.3,2516.2,0.39768]
[1729786417448,0.39768,2516.2,2516.1,0.39769]
[1729786418654,3.60547,2516.3,2516.2,0.39768]
[1729786418945,3.2078,2516.3,2515.8,0.99436]
[1729786419251,3.2078,2516.3,2516.2,0.39768]
[1729786419252,5.66159717,2516.3,2516.2,0.39768]
[1729786419443,5.26392717,2516.3,2515.8,0.99436]
[1729786419643,0.39768,2516.2,2516.1,0.39768]
[1729786419852,5.66159717,2516.3,2516.2,0.39768]
[1729786420150,5.26392717,2516.3,2515.8,0.99436]
[1729786420340,5.66159717,2516.3,2516.2,0.39768]
[1729786420543,5.26392717,2516.3,2515.4,4.78258572]
[1729786420746,5.26392717,2516.3,2515.8,0.99433]
[1729786420946,5.66159717,2516.3,2516.2,0.39768]
[1729786421145,0.39768,2516.2,2516.1,0.39768]
[1729786421345,5.66159717,2516.3,2516.2,0.39768]
[1729786421644,5.66158717,2516.3,2516.2,0.39768]
[1729786421950,2.05612717,2516.3,2516.2,7.57988]
[1729786424350,3.6405,2516.9,2516.8,0.39758]
[1729786424549,0.4327,2516.9,2516.8,0.39758]
[1729786425854,1.24446,2517.0,2516.9,0.39757]
[1729786425855,0.8469,2517.0,2516.9,0.39757]
[1729786426056,3.2078,2517.2,2516.9,0.39757]
[1729786426057,5.26342132,2517.2,2517.1,0.39754]
[1729786426850,3.2078,2517.2,2517.1,0.39754]
[1729786427752,3.60532,2517.2,2517.1,0.39754]
[1729786428448,3.2078,2517.2,2517.1,0.39754]
[1729786428955,3.60532,2517.2,2517.1,0.39754]
[1729786429158,3.2078,2517.2,2517.1,0.39754]
[1729786430453,3.60532,2517.2,2517.1,0.39754]
[1729786430657,6.39893572,2517.2,2517.1,0.39754]
[1729786430847,0.39757,2517.0,2516.9,0.39755]
[1729786431048,1.02771945,2517.0,2516.9,0.39755]
[1729786431653,1.46891945,2517.0,2516.9,0.39755]
[1729786431954,1.86646945,2517.0,2516.9,0.39755]
[1729786432154,1.46891945,2517.0,2516.9,0.39755]
[1729786432349,1.86646945,2517.0,2516.9,0.39755]
[1729786432545,1.86646945,2517.0,2516.6,0.99402]
[1729786432546,1.46891945,2517.0,2516.6,0.99402]
[1729786432747,1.46891945,2517.0,2516.9,0.39757]
[1729786433145,1.02771945,2517.0,2516.9,4.37037]
[1729786433346,1.02771945,2517.1,2516.9,3.9728]
[1729786433554,1.02771945,2517.0,2516.9,0.39757]
[1729786433752,1.02771945,2517.0,2516.9,4.37037]
[1729786433957,1.02771945,2517.1,2516.9,3.9728]
[1729786434161,1.02771945,2517.0,2516.8,0.39758]
[1729786434358,1.02771945,2517.0,2516.9,0.39757]
[1729786435152,5.26342132,2517.2,2516.9,3.9728]
[1729786435153,5.66095132,2517.2,2516.9,3.9728]
[1729786435353,5.66095132,2517.2,2517.1,0.39754]
[1729786435558,5.26342132,2517.2,2516.5,0.8482]
[1729786435761,2.05562132,2517.1,2516.5,0.8482]
[1729786436063,1.02830414,2516.8,2516.7,0.39759]
[1729786436558,0.39761,2516.7,2516.6,0.39761]
[1729786436765,0.80141,2516.7,2516.6,0.39761]
[1729786437464,0.39764,2516.5,2516.2,0.9942]
[1729786437771,1.42663405,2516.5,2516.4,0.39765]
[1729786437964,1.42667053,2516.5,2516.4,0.39764]
[1729786438160,0.84254,2516.5,2516.4,0.39764]
[1729786439265,0.4449,2516.5,2516.4,0.39764]
[1729786439568,0.84253,2516.5,2516.4,0.39764]
[1729786439764,1.24783,2516.5,2516.4,0.39764]
[1729786440168,3.30345132,2516.5,2516.4,0.39764]
[1729786440372,1.24783,2516.5,2516.4,0.39764]
[1729786440666,3.30345132,2516.5,2516.4,0.39764]
[1729786440878,2.90582132,2516.5,2516.4,0.39764]
[1729786441166,1.24783,2516.5,2516.4,0.39764]
[1729786441361,2.50431619,2516.5,2516.4,0.39764]
[1729786442671,2.50484105,2516.5,2516.4,0.39764]
[1729786442965,2.50484075,2516.5,2516.4,0.39764]
[1729786443167,0.4449,2516.5,2516.4,0.39764]
[1729786443866,0.84253,2516.5,2516.4,0.39764]
[1729786444069,0.4449,2516.5,2516.4,0.39764]
[1729786444373,3.01505897,2516.5,2516.4,0.39764]
[1729786445168,3.02179632,2516.5,2516.4,0.39764]
[1729786445472,0.4449,2516.5,2516.4,0.39764]
[1729786445666,0.84253,2516.5,2516.4,0.39764]
[1729786446377,0.4449,2516.5,2516.4,0.39764]
[1729786446571,0.84253,2516.5,2516.4,0.39764]
[1729786448171,3.23851572,2516.5,2515.6,0.04870524]
[1729786448370,3.23851572,2516.5,2515.5,5.19672]
[1729786448371,1.54605483,2515.9,2515.8,0.945101]
[1729786448668,1.54605483,2515.9,2515.8,1.1438723]
[1729786448876,1.54605483,2515.9,2515.8,5.1182723]
[1729786449369,0.68352483,2515.9,2515.8,5.5272723]
[1729786449574,1.03061312,2516.0,2515.8,9.92893746]
[1729786449766,1.03061312,2516.0,2515.9,9.10574318]
[1729786449963,2.06140644,2516.3,2516.2,0.39768]
[1729786450168,3.02165805,2516.5,2516.2,0.39768]
[1729786450169,2.06140644,2516.4,2516.2,0.12435543]
[1729786450370,2.57675805,2516.5,2516.4,0.39765]
[1729786451878,3.2078,2516.6,2516.5,0.39763]
[1729786455086,5.7850763,2516.6,2516.5,0.39763]
[1729786455377,5.78503716,2516.6,2516.5,0.39763]
[1729786455572,3.2078,2516.6,2516.5,0.39763]
[1729786456283,5.78514868,2516.6,2516.5,0.39763]
[1729786456584,3.2078,2516.6,2516.5,0.39763]
[1729786458695,5.78554267,2516.6,2516.5,0.39763]
[1729786458978,6.18315267,2516.6,2516.5,0.39763]
[1729786459189,5.78554267,2516.6,2516.5,0.39763]
[1729786460084,5.78554267,2516.6,2516.5,4.37123]
[1729786460279,2.06249222,2516.7,2516.6,0.39761]
[1729786460486,2.06249222,2516.8,2516.7,0.3976]
[1729786460790,2.06249222,2516.8,2516.7,0.12434588]
[1729786460791,2.97532267,2516.8,2516.7,0.12434588]
[1729786460974,2.97532267,2516.8,2516.3,0.99413]
[1729786460975,0.39761,2516.6,2516.5,0.39762]
[1729786461988,4.04081,2516.7,2516.6,0.39761]
[1729786462484,0.39764,2516.5,2516.4,0.39763]
[1729786462784,7.6168,2516.7,2516.1,1.42533]
[1729786462785,0.39763,2516.6,2516.5,0.39762]
[1729786463786,0.39766,2516.4,2516.3,0.39764]
[1729786464082,3.2078,2516.4,2515.9,0.99429]
[1729786464286,0.83328,2516.3,2516.2,0.39767]
[1729786465274,0.83328,2516.3,2515.9,0.99429]
[1729786465275,0.3977,2516.2,2516.1,0.39768]
[1729786465477,3.51979076,2516.3,2515.7,1.41259]
[1729786465674,3.51979076,2516.3,2515.8,0.52211627]
[1729786465675,2.06235784,2515.9,2515.8,0.52211627]
[1729786466186,2.9756573,2516.0,2515.9,0.39772]
[1729786466187,0.39772,2516.0,2515.9,0.39772]
[1729786466388,4.0229,2516.1,2516.0,0.39771]
[1729786466990,4.0229,2516.1,2515.6,0.99443]
[1729786466991,0.39772,2516.0,2515.9,0.39771]
[1729786468292,7.10709076,2516.1,2516.0,0.39771]
[1729786468481,3.6252,2516.1,2516.0,0.39771]
[1729786469183,3.2078,2516.1,2516.0,0.39771]
[1729786469586,5.78454419,2516.1,2516.0,0.39771]
[1729786470081,2.57674419,2516.1,2516.0,0.39771]
[1729786474284,2.57674419,2516.2,2516.0,3.9744]
[1729786474486,2.06106721,2516.3,2516.1,6.76801572]
[1729786474688,2.06106721,2516.3,2516.1,2.79361572]
[1729786474995,2.06106721,2516.3,2516.2,0.39768]
[1729786475390,2.06106721,2516.3,2516.2,4.37208]
[1729786476595,2.57674419,2516.4,2516.0,0.99427]
[1729786476892,2.57674419,2516.4,2516.3,0.39766]
[1729786477398,2.06183373,2516.5,2516.4,0.39765]
[1729786477592,2.06183373,2516.5,2516.4,0.52199602]
[1729786477787,2.06183373,2516.5,2516.4,4.49559602]
[1729786479094,2.06183373,2516.5,2516.4,5.11729276]
[1729786479400,2.06183373,2516.5,2516.4,0.52199602]
[1729786479797,2.06183373,2516.5,2516.4,0.39765]
[1729786479997,0.4028,2516.6,2516.2,0.99419]
[1729786480201,0.4028,2516.6,2516.5,0.39763]
[1729786480401,0.80041,2516.6,2516.5,0.39763]
[1729786480700,0.4028,2516.6,2516.5,0.39763]
[1729786481303,0.80042,2516.6,2516.5,0.39763]
[1729786481800,7.17001572,2516.6,2516.3,0.39765]
[1729786481997,3.60546,2516.4,2516.3,0.39766]
[1729786482194,0.39767,2516.3,2516.2,0.39767]
[1729786482700,3.2078,2516.4,2515.9,0.99431]
[1729786482905,0.39767,2516.3,2516.2,0.39767]
[1729786483090,0.39768,2516.2,2516.1,0.39768]
[1729786483294,3.2078,2516.4,2515.7,3.78799572]
[1729786483503,0.4041,2516.1,2516.0,0.39771]
[1729786483803,0.4041,2516.1,2516.0,0.52208153]
[1729786484489,0.4041,2516.1,2516.0,0.39771]
[1729786486007,3.2078,2516.4,2516.3,0.39766]
[1729786486201,4.03135,2516.4,2516.3,0.39766]
[1729786486996,3.6337,2516.4,2516.3,0.39766]
[1729786487403,4.03135,2516.4,2516.3,0.39766]
[1729786487703,3.6337,2516.4,2516.3,0.39766]
[1729786488105,4.03135,2516.4,2516.3,0.39766]
[1729786488301,3.6337,2516.4,2516.3,0.39766]
[1729786490003,4.03135,2516.4,2516.3,0.39766]
[1729786490607,0.39768,2516.3,2516.2,0.39766]
[1729786491309,3.49285104,2516.3,2516.2,0.39766]
[1729786494206,9.86318676,2516.3,2515.8,0.99434]
[1729786494406,2.58010688,2516.0,2515.9,0.39773]
[1729786494605,0.39771,2516.0,2515.9,0.39773]
[1729786494910,1.22371,2516.0,2515.9,0.39773]
[1729786498204,0.826,2516.0,2515.9,0.39773]
[1729786498412,1.22371,2516.0,2515.9,0.39773]
[1729786498909,0.826,2516.0,2515.9,0.39773]
[1729786499312,1.22371,2516.0,2515.9,0.39773]
[1729786499514,0.826,2516.0,2515.9,0.39773]
[1729786499716,1.22371,2516.0,2515.9,0.39773]
[1729786500013,0.826,2516.0,2515.9,0.39773]
[1729786500208,3.2078,2516.1,2515.7,4.23131572]
[1729786500414,3.2078,2516.1,2516.0,0.39771]
[1729786500911,3.60549,2516.1,2516.0,0.39771]
[1729786501313,3.2078,2516.1,2516.0,0.39771]
[1729786501511,3.60549,2516.1,2516.0,0.39771]
[1729786502512,0.39777,2515.7,2515.4,0.99452]
[1729786502711,0.39777,2515.7,2515.3,3.2078]
[1729786502712,2.97844252,2515.6,2515.5,0.52216284]
[1729786503009,0.84167,2515.6,2515.5,0.39778]
[1729786503416,0.4439,2515.6,2515.5,0.39778]
[1729786503616,3.23751572,2515.6,2515.2,0.99459]
[1729786503819,2.06410857,2515.3,2515.2,0.39784]
[1729786504121,2.06410857,2515.3,2515.2,1.34328368]
[1729786504319,2.06410857,2515.3,2515.2,5.31928368]
[1729786504621,2.58013571,2515.8,2515.3,3.976]
[1729786504918,0.4204,2516.3,2516.2,0.39768]
[1729786506021,3.2078,2516.4,2516.3,0.39766]
[1729786506416,6.30297104,2516.4,2516.3,0.39766]
[1729786506624,9.49423676,2516.4,2516.3,0.39766]
[1729786507014,9.09658676,2516.4,2516.3,0.39766]
[1729786507514,6.00141572,2516.4,2516.3,0.39766]
[1729786507827,3.2078,2516.4,2516.3,0.52201869]
[1729786508530,3.2078,2516.4,2516.1,0.39769]
[1729786508531,0.3977,2516.2,2516.1,0.39769]
[1729786508934,0.3977,2516.2,2515.8,0.99435]
[1729786508935,3.49751752,2516.3,2516.2,0.39766]
[1729786509322,0.39767,2516.3,2516.2,0.39766]
[1729786509632,3.49751752,2516.3,2516.2,0.39767]
[1729786510028,0.39769,2516.2,2516.1,0.39769]
[1729786510534,3.94123752,2516.2,2516.1,0.39769]
[1729786510733,3.54354752,2516.2,2516.1,0.39769]
[1729786510934,3.94122752,2516.2,2516.1,0.39769]
[1729786511323,0.39771,2516.1,2515.6,0.99441]
[1729786511642,0.39771,2516.1,2515.7,0.522117]
[1729786511643,0.39774,2515.8,2515.7,0.522117]
[1729786511933,0.39774,2515.8,2515.4,0.3978]
[1729786511934,0.39781,2515.5,2515.4,0.3978]
[1729786512236,3.60561,2515.5,2515.4,0.3978]
[1729786513031,3.60559,2515.5,2515.4,0.3978]
[1729786513535,3.2078,2515.5,2515.4,0.3978]
[1729786514125,3.2078,2515.5,2515.4,7.16661572]
[1729786514329,3.2078,2515.5,2515.4,7.29101431]
[1729786514725,3.2078,2515.5,2515.4,4.49739859]
[1729786514925,3.2078,2515.5,2515.4,0.52219859]
[1729786515537,3.2078,2515.8,2515.7,0.39776]
[1729786517947,0.39777,2515.7,2515.6,0.39776]
[1729786518342,6.30764752,2515.8,2515.4,0.9945]
[1729786518539,6.30764752,2515.8,2515.7,0.39776]
[1729786518540,3.60555,2515.8,2515.7,0.39776]
[1729786518740,3.2078,2515.8,2515.7,0.39776]
[1729786520254,3.60554,2515.8,2515.7,0.39776]
[1729786520842,3.2078,2515.8,2515.7,0.39776]
[1729786521339,3.2078,2515.8,2515.7,3.19137572]
[1729786521543,4.01818877,2516.1,2515.7,7.16657572]
[1729786521544,6.30764752,2516.1,2515.7,7.16657572]
[1729786521746,3.2078,2516.1,2516.0,0.39771]
[1729786522253,3.2078,2516.1,2516.0,4.37211]
[1729786522635,3.2078,2516.1,2516.0,0.39771]
[1729786522848,3.2078,2516.1,2516.0,4.37211]
[1729786524841,5.78905183,2516.1,2516.0,4.37211]
[1729786525441,1.54895632,2516.1,2516.0,6.31210862]
[1729786525646,1.54895632,2516.2,2516.1,0.39769]
[1729786525843,1.54886492,2516.3,2516.2,0.39768]
[1729786526041,2.58125183,2516.5,2516.2,0.94513171]
[1729786526345,2.99054732,2516.5,2516.4,0.39765]
[1729786527246,2.58104732,2516.5,2516.4,0.39765]
[1729786527650,0.39763,2516.5,2516.4,0.39765]
[1729786527843,0.39763,2516.5,2516.1,0.99423]
[1729786527844,0.99412,2516.4,2515.8,0.4402]
[1729786528148,0.99412,2516.4,2515.2,0.39784]
[1729786528149,0.39779,2515.5,2515.2,0.39784]
[1729786528357,0.4161,2515.4,2515.3,1.14418703]
[1729786528540,0.4161,2515.4,2515.3,0.52220617]
[1729786528746,0.4161,2515.4,2515.3,0.52221335]
[1729786529242,2.99486064,2515.4,2515.3,0.39781]
[1729786529443,0.4161,2515.4,2515.3,0.39781]
[1729786529639,0.4161,2515.4,2515.3,0.52221229]
[1729786530059,0.4161,2515.4,2515.3,0.39781]
[1729786530241,2.99486064,2515.4,2515.3,0.39781]
[1729786530443,0.4161,2515.4,2515.3,0.39781]
[1729786530644,2.99486064,2515.4,2515.3,0.39781]
[1729786530947,0.4161,2515.4,2515.3,0.39781]
[1729786531150,5.78847636,2515.4,2514.5,3.83543248]
[1729786531349,5.78847636,2515.4,2514.7,1.94082648]
[1729786531350,1.54624725,2515.0,2514.7,1.94082648]
[1729786531546,2.57752179,2515.2,2514.8,0.74647172]
[1729786531848,2.57752179,2515.2,2514.9,0.52229627]
[1729786532152,5.78356889,2515.0,2514.9,0.39788]
[1729786532552,9.75956889,2515.0,2514.4,0.9949]
[1729786532749,3.38705889,2514.9,2514.7,0.39791]
[1729786532941,2.98916889,2514.9,2514.3,3.78856572]
[1729786533149,1.54455027,2514.4,2514.3,3.19159572]
[1729786533357,1.54439645,2514.4,2514.3,3.19159572]
[1729786533544,1.54439645,2514.5,2514.4,0.39796]
[1729786533746,2.57576889,2514.7,2514.3,2.79361572]
[1729786534046,1.54345754,2514.4,2514.3,3.19159572]
[1729786534443,3.2078,2514.6,2514.4,0.39796]
[1729786534444,1.54345754,2514.5,2514.4,0.39796]
[1729786535243,1.54345754,2514.5,2514.0,0.99507]
[1729786535244,8.82670828,2514.5,2513.7,3.2078]
[1729786535446,3.2078,2513.8,2513.2,2.79361572]
[1729786535645,4.3356522,2513.5,2512.9,3.2078]
[1729786535846,1.54203648,2513.4,2513.1,2.79361572]
[1729786536051,1.54203648,2513.6,2513.4,0.39812]
[1729786536251,1.95843648,2513.7,2513.5,2.79361572]
[1729786536449,0.4164,2513.7,2513.6,0.39809]
[1729786536645,4.74983648,2513.9,2513.8,0.39806]
[1729786536847,3.2078,2513.9,2513.8,0.39806]
[1729786538153,3.2078,2513.9,2513.8,4.37566]
[1729786538355,3.2078,2513.9,2513.8,0.39806]
[1729786539157,7.1854,2513.9,2513.7,0.39806]
[1729786539454,3.9784,2513.8,2513.6,0.39808]
[1729786539754,3.9784,2513.8,2513.0,3.78907572]
[1729786539755,0.39807,2513.7,2513.0,3.78907572]
[1729786540050,3.2078,2513.6,2512.9,0.414]
[1729786540256,3.2078,2513.6,2512.7,2.79361572]
[1729786540257,3.19541572,2513.5,2512.7,2.79361572]
[1729786540447,3.19541572,2513.5,2513.4,0.39812]
[1729786541657,0.4018,2513.5,2513.4,0.39812]
[1729786542253,0.4018,2513.5,2512.8,4.20334]
[1729786542254,0.39813,2513.4,2513.3,0.39814]
[1729786542448,3.19541572,2513.5,2513.4,0.39812]
[1729786542644,7.17381572,2513.5,2513.4,0.39812]
[1729786542945,7.57192572,2513.5,2513.3,0.39813]
[1729786543148,3.59352572,2513.5,2513.3,0.39813]
[1729786543350,4.37652,2513.4,2513.3,0.39813]
[1729786543854,3.9784,2513.4,2513.3,0.39813]
[1729786544058,4.37652,2513.4,2513.3,0.39813]
[1729786544351,0.4018,2513.5,2512.8,2.79361572]
[1729786544560,0.4018,2513.5,2513.4,0.39812]
[1729786545054,0.4018,2513.5,2513.4,4.37652]
[1729786545258,3.2078,2513.9,2513.8,0.39806]
[1729786545563,3.6517,2514.2,2514.1,0.39801]
[1729786547352,4.0351,2514.8,2514.7,0.39792]
[1729786547554,6.43081572,2514.8,2514.7,0.39792]
[1729786547857,10.40761572,2514.8,2514.7,0.39792]
[1729786548053,3.6372,2514.8,2514.7,0.39792]
[1729786548250,4.0461,2515.1,2514.7,0.39792]
[1729786548446,3.6163,2515.1,2514.7,0.39792]
[1729786548661,4.01416,2515.1,2515.0,0.39787]
[1729786549050,4.01416,2515.1,2514.9,0.39787]
[1729786549051,0.39787,2515.0,2514.9,0.39787]
[1729786549357,2.79361572,2515.0,2514.9,0.39787]
[1729786549557,7.16748572,2515.0,2514.9,0.39787]
[1729786549756,7.16748572,2515.0,2514.9,0.39788]
[1729786550452,7.76430572,2515.0,2513.9,3.6143]
[1729786550649,3.2078,2514.5,2514.4,0.39795]
[1729786551456,2.79361572,2514.9,2514.8,0.3979]
[1729786552359,0.4381,2515.0,2514.9,0.39788]
[1729786552550,3.2078,2515.1,2515.0,0.39787]
[1729786552857,3.976,2515.1,2514.7,1.3927]
[1729786553062,2.79361572,2515.3,2514.7,0.39792]
[1729786553063,3.20411572,2515.3,2514.7,0.39792]
[1729786553356,3.20411572,2515.3,2515.2,0.39784]
[1729786553757,7.18011572,2515.3,2515.2,0.39784]
[1729786554058,3.2078,2515.4,2515.3,0.39782]
[1729786554447,44.40556,2515.7,2515.6,0.39777]
[1729786554652,0.39779,2515.5,2515.4,0.3978]
[1729786554853,0.39779,2515.5,2515.0,1.43206]
[1729786555159,0.39779,2515.5,2515.4,0.3978]
[1729786555352,2.79361572,2515.6,2515.5,0.39779]
[1729786555353,3.19139572,2515.6,2515.5,0.39779]
[1729786555756,6.76881572,2515.6,2515.0,1.43206]
[1729786555956,0.39779,2515.5,2515.4,0.3978]
[1729786556256,44.0078,2515.7,2515.0,1.43206]
[1729786556452,44.0078,2515.7,2515.6,0.39777]
[1729786556658,3.2078,2515.7,2515.6,0.39777]
[1729786557461,3.60556,2515.7,2515.6,0.39777]
[1729786557660,3.2078,2515.7,2515.6,0.39777]
[1729786557959,0.4285,2515.8,2515.7,0.39776]
[1729786558162,0.82624,2515.8,2515.7,0.39776]
[1729786558363,0.4285,2515.8,2515.3,1.42743]
[1729786558559,0.39777,2515.7,2515.6,0.39776]
[1729786559458,0.4285,2515.8,2515.3,1.42743]
[1729786559667,0.82625,2515.8,2515.7,0.39776]
[1729786560363,0.4285,2515.8,2515.3,0.4329]
[1729786560761,0.39776,2515.7,2515.6,0.39776]
[1729786560963,2.20040945,2515.8,2515.7,0.39776]
[1729786561158,0.39777,2515.7,2515.6,0.39776]
[1729786561765,0.39779,2515.6,2515.5,0.39778]
[1729786561957,1.80264945,2515.8,2515.1,0.39784]
[1729786561958,0.39785,2515.2,2515.1,0.39784]
[1729786562161,3.60561,2515.4,2515.3,0.39781]
[1729786562865,3.6056,2515.4,2515.3,0.39781]
[1729786563064,3.2078,2515.4,2515.3,0.39781]
[1729786563568,3.6056,2515.4,2515.3,0.39781]
[1729786564171,3.2078,2515.4,2515.3,0.39781]
[1729786564362,3.6056,2515.4,2515.3,0.39781]
[1729786564668,0.4246,2515.6,2515.0,0.4374]
[1729786564856,6.00141572,2515.4,2514.8,3.6448]
[1729786565062,0.39784,2515.2,2515.1,0.39784]
[1729786565265,6.00141572,2515.4,2514.8,3.2078]
[1729786565573,0.39788,2515.0,2514.9,0.39787]
[1729786566160,0.39785,2515.2,2515.1,0.39784]
[1729786566366,6.00141572,2515.4,2515.2,0.39783]
[1729786566367,0.39783,2515.3,2515.2,0.39783]
[1729786566568,3.2078,2515.4,2515.3,0.39782]
[1729786566972,0.4246,2515.6,2515.5,0.39779]
[1729786567372,3.2078,2515.7,2515.6,0.39777]
[1729786567671,3.60556,2515.7,2515.6,0.39777]
[1729786567976,3.2078,2515.7,2515.0,3.78828572]
[1729786568172,2.79361572,2515.6,2514.9,1.83971]
[1729786568377,0.39782,2515.4,2515.3,0.39781]
[1729786568565,3.60562,2515.4,2515.3,0.39781]
[1729786568762,3.60562,2515.4,2514.9,1.83971]
[1729786568763,7.183,2515.4,2514.9,1.83971]
[1729786568961,0.8251,2515.3,2514.9,1.83971]
[1729786569173,0.8251,2515.3,2515.2,0.39784]
[1729786569174,1.22294,2515.3,2515.2,0.39784]
[1729786569570,0.8251,2515.3,2515.2,0.39784]
[1729786569870,0.8251,2515.3,2515.0,0.99467]
[1729786569871,3.2078,2515.4,2515.3,0.39782]
[1729786571071,7.183,2515.4,2515.0,0.99467]
[1729786571374,7.183,2515.4,2515.1,0.39784]
[1729786571375,0.39785,2515.2,2515.1,0.39784]
[1729786571570,0.39787,2515.1,2514.9,0.845]
[1729786571763,0.39787,2515.1,2514.8,2.79361572]
[1729786571764,0.39793,2514.7,2514.6,0.39791]
[1729786572166,0.39795,2514.6,2514.5,0.39794]
[1729786572474,0.39801,2514.2,2514.1,0.398]
[1729786573570,5.06878,2514.5,2513.8,3.20671572]
[1729786573773,3.2078,2514.2,2513.8,3.20671572]
[1729786573978,3.60581,2514.2,2514.1,0.39801]
[1729786574270,3.2078,2514.2,2514.1,0.39801]
[1729786574964,3.2078,2514.5,2514.0,6.00141572]
[1729786575169,0.39799,2514.3,2514.2,0.39798]
[1729786575371,3.2078,2514.5,2513.8,3.20671572]
[1729786575671,0.39809,2513.7,2513.4,2.79361572]
[1729786575977,0.39813,2513.4,2513.3,0.39813]
[1729786576175,3.2078,2513.6,2513.2,3.2078]
[1729786576176,3.6214,2513.6,2513.2,3.2078]
[1729786576478,3.6214,2513.6,2513.0,3.62801572]
[1729786576680,0.39815,2513.2,2513.1,0.39816]
[1729786576868,3.2078,2513.3,2513.2,0.39815]
[1729786577373,0.4136,2513.6,2513.0,2.79361572]
[1729786577578,0.39814,2513.3,2513.0,2.79361572]
[1729786578077,3.2078,2513.5,2513.0,2.79361572]
[1729786578975,0.39813,2513.4,2513.2,0.39815]
[1729786579173,3.2078,2513.5,2513.0,2.79361572]
[1729786579577,3.60591,2513.5,2513.3,0.39813]
[1729786580680,7.58431,2513.5,2513.3,0.39813]
[1729786580882,3.2078,2513.5,2512.9,0.99549]
[1729786581080,0.39815,2513.3,2513.1,0.39816]
[1729786581386,0.39815,2513.3,2512.6,0.39824]
[1729786581387,0.39822,2512.8,2512.6,0.39824]
[1729786581680,3.2078,2512.8,2512.6,0.39824]
[1729786581872,3.2078,2512.8,2512.3,3.2078]
[1729786582078,3.60602,2512.8,2512.6,0.39824]
[1729786582376,3.2078,2512.8,2512.6,0.39824]
[1729786582684,3.2078,2512.8,2512.7,0.39823]
[1729786582886,3.2078,2512.8,2512.3,3.2078]
[1729786583076,6.65059116,2512.8,2512.1,0.4214]
[1729786583383,3.2078,2512.5,2512.1,0.4214]
[1729786583579,3.2078,2512.5,2512.3,0.39829]
[1729786583580,3.60606,2512.5,2512.3,0.39829]
[1729786584283,0.39829,2512.4,2512.1,0.81972]
[1729786584584,3.2078,2512.8,2512.7,0.39822]
[1729786585484,3.44279116,2513.8,2512.7,7.42279116]
[1729786585683,3.2078,2513.6,2513.5,0.3981]
[1729786586184,3.6059,2513.6,2513.4,0.39811]
[1729786586484,3.2078,2513.6,2513.0,4.20325]
[1729786586680,0.39811,2513.5,2513.3,0.39813]
[1729786586884,3.2078,2513.6,2513.0,3.2078]
[1729786587078,6.65059116,2513.1,2512.1,3.2078]
[1729786587276,6.65059116,2513.1,2512.1,0.99579]
[1729786587277,3.2078,2512.9,2512.1,0.99579]
[1729786587478,3.2078,2512.7,2511.9,3.44279116]
[1729786587678,0.99557,2512.8,2512.1,0.39832]
[1729786587679,0.39832,2512.2,2512.1,0.39832]
[1729786587876,0.39832,2512.2,2512.1,0.39833]
[1729786588278,3.2078,2512.4,2512.1,3.9808]
[1729786588576,0.4195,2513.0,2512.3,0.3983]
[1729786588577,0.39828,2512.5,2512.3,0.3983]
[1729786588776,3.2078,2512.7,2512.0,0.4384]
[1729786588978,3.2078,2512.7,2512.6,0.39825]
[1729786589676,3.2078,2513.1,2512.6,4.37825]
[1729786589873,3.2078,2513.1,2513.0,0.39818]
[1729786589874,3.60598,2513.1,2513.0,0.39818]
[1729786590076,3.60598,2513.1,2512.7,0.8621]
[1729786590281,3.2078,2513.1,2513.0,0.39818]
[1729786590488,3.60597,2513.1,2513.0,0.39818]
[1729786590681,3.2078,2513.1,2513.0,0.39818]